bitfinex-derivatives/quotes_BTCF0:USTF0_20250922
["timestamp","ask_amount","ask_price","bid_price","bid_amount"]
[1758526428936,0.55111072,112900.0,112890.0,0.1124561]
[1758526429126,1.44455072,112900.0,112890.0,0.1124561]
[1758526430330,1.44455072,112900.0,112890.0,0.02394]
[1758526430331,1.4539509,112900.0,112890.0,0.02394]
[1758526430534,1.4539509,112900.0,112890.0,0.32893121]
[1758526430832,0.08402,112900.0,112890.0,0.97943852]
[1758526431026,0.08442,112900.0,112890.0,1.05906943]
[1758526431228,0.08402,112900.0,112890.0,1.41986943]
[1758526431833,0.08402,112900.0,112890.0,1.88066943]
[1758526431834,0.08442,112900.0,112890.0,1.88066943]
[1758526432022,0.08402,112900.0,112890.0,1.88066943]
[1758526432222,0.08442,112900.0,112890.0,1.88066943]
[1758526432823,0.0024,112900.0,112890.0,1.27068701]
[1758526433031,0.0024,112900.0,112890.0,1.88066943]
[1758526434533,0.0024,112900.0,112890.0,1.74710118]
[1758526436534,0.0024,112900.0,112890.0,1.66747027]
[1758526436934,0.0024,112900.0,112890.0,1.67689397]
[1758526438536,0.0024,112900.0,112890.0,1.1910561]
[1758526438735,0.0024,112900.0,112890.0,1.66747027]
[1758526438939,0.01594,112900.0,112890.0,2.55499027]
[1758526439236,0.01594,112900.0,112890.0,1.66047027]
[1758526439938,0.01594,112900.0,112890.0,1.41047027]
[1758526440825,0.01594,112900.0,112890.0,1.41051027]
[1758526441027,0.0024,112900.0,112890.0,1.67707523]
[1758526441227,0.07849359,112940.0,112920.0,0.0884893]
[1758526441430,0.06495359,112940.0,112930.0,0.59384897]
[1758526441632,0.96256466,112950.0,112940.0,0.0884769]
[1758526441832,0.95936466,112950.0,112940.0,0.58684107]
[1758526442026,0.0357,112950.0,112940.0,0.58684107]
[1758526442230,1.56182,112950.0,112940.0,0.58684107]
[1758526442430,1.56222,112950.0,112940.0,0.58684107]
[1758526442835,1.56182,112950.0,112940.0,0.58684107]
[1758526443037,1.54259164,112950.0,112940.0,0.1104269]
[1758526443232,1.55613164,112950.0,112940.0,0.1104269]
[1758526443431,1.56813164,112950.0,112940.0,0.1104269]
[1758526443633,0.72240612,112950.0,112940.0,0.58684107]
[1758526443831,1.38692612,112950.0,112940.0,0.58684107]
[1758526444031,1.38652612,112950.0,112940.0,0.58684107]
[1758526444239,0.00852,112950.0,112940.0,0.2237069]
[1758526444437,0.00892,112950.0,112940.0,1.06092107]
[1758526444636,0.00852,112950.0,112940.0,0.5845069]
[1758526444835,0.0024,112950.0,112940.0,1.06092107]
[1758526445030,0.00132285,112950.0,112940.0,1.06092107]
[1758526445230,0.02348285,112950.0,112940.0,1.06092107]
[1758526445436,0.02348285,112950.0,112940.0,0.5845069]
[1758526445638,0.03702285,112950.0,112940.0,0.5845069]
[1758526445844,0.95810285,112950.0,112940.0,1.06092107]
[1758526446134,0.95810285,112950.0,112940.0,0.94764107]
[1758526446933,0.95810285,112950.0,112940.0,0.02195]
[1758526447739,0.95810285,112950.0,112940.0,0.49836417]
[1758526448051,1.31890285,112950.0,112940.0,0.49836417]
[1758526448239,1.56890285,112950.0,112930.0,0.0209999]
[1758526448446,0.3961,112940.0,112930.0,0.0429499]
[1758526448748,1.31846,112940.0,112930.0,0.51926407]
[1758526449347,1.31846,112940.0,112930.0,0.61926407]
[1758526450332,1.31846,112940.0,112930.0,0.62026407]
[1758526450538,1.56846,112940.0,112930.0,0.101]
[1758526450739,1.56846,112940.0,112930.0,0.001]
[1758526452145,0.03592,112930.0,112920.0,0.02152]
[1758526452346,0.39672,112930.0,112920.0,0.02142]
[1758526452745,1.32072,112930.0,112920.0,0.02142]
[1758526453045,1.32072,112930.0,112920.0,0.49783417]
[1758526453442,1.32672,112930.0,112920.0,0.49783417]
[1758526453642,1.32672,112930.0,112920.0,0.02142]
[1758526453837,0.01361,112920.0,112910.0,0.5189769]
[1758526454040,0.39672,112920.0,112910.0,0.5187769]
[1758526454745,0.39672,112920.0,112910.0,0.59807456]
[1758526455038,0.39672,112920.0,112910.0,0.07929766]
[1758526455446,0.39972,112920.0,112910.0,0.07929766]
[1758526455747,0.46987276,112920.0,112910.0,0.07929766]
[1758526456147,0.01361,112910.0,112900.0,1.02569768]
[1758526456346,0.93685,112910.0,112900.0,1.02549768]
[1758526457147,0.95916,112910.0,112900.0,0.48199631]
[1758526457347,0.95916,112910.0,112900.0,0.97911282]
[1758526457544,1.31996,112910.0,112900.0,0.14189865]
[1758526457740,0.38356,112910.0,112900.0,0.05517865]
[1758526458046,0.38356,112910.0,112900.0,1.53661285]
[1758526458047,0.001,112910.0,112900.0,1.53661285]
[1758526458244,0.0014,112910.0,112900.0,1.53661285]
[1758526458542,0.0014,112910.0,112900.0,1.78661285]
[1758526458740,0.001,112910.0,112900.0,1.70731519]
[1758526458936,0.001,112910.0,112900.0,1.91872504]
[1758526459143,0.001,112910.0,112900.0,1.44331087]
[1758526459144,0.0014,112910.0,112900.0,1.44331087]
[1758526459543,0.0014,112910.0,112900.0,1.44231087]
[1758526459744,0.0014,112910.0,112900.0,1.33490102]
[1758526460246,0.0014,112910.0,112900.0,1.44631087]
[1758526460247,0.0004,112910.0,112900.0,1.44631087]
[1758526460451,0.0004,112910.0,112900.0,1.44831087]
[1758526461041,0.0004,112910.0,112900.0,1.33690102]
[1758526461242,0.02371,112910.0,112900.0,0.85448685]
[1758526461553,0.02371,112910.0,112900.0,1.05047154]
[1758526461750,0.02371,112910.0,112900.0,0.95047154]
[1758526461937,0.02371,112910.0,112900.0,0.87110102]
[1758526462751,0.02371,112910.0,112900.0,0.97110102]
[1758526463051,0.0014,112910.0,112900.0,0.97110102]
[1758526463442,0.02371,112910.0,112900.0,0.97110102]
[1758526463640,0.0014,112910.0,112900.0,1.80831519]
[1758526464046,0.0014,112910.0,112900.0,1.33190102]
[1758526464248,0.0014,112910.0,112900.0,1.44331087]
[1758526464450,0.0014,112910.0,112900.0,1.52271145]
[1758526464646,0.0014,112910.0,112900.0,1.4113016]
[1758526466955,0.0014,112910.0,112900.0,1.0505016]
[1758526467555,0.0014,112910.0,112900.0,1.4113016]
[1758526468547,0.0014,112910.0,112900.0,1.33190102]
[1758526468951,0.02394,112910.0,112900.0,0.89339282]
[1758526469143,0.03685,112910.0,112900.0,0.04289865]
[1758526469358,0.64765,112910.0,112900.0,0.04398865]
[1758526469662,0.64765,112910.0,112900.0,0.52040282]
[1758526470249,0.64765,112910.0,112900.0,0.72032087]
[1758526470458,1.57629,112910.0,112900.0,0.72032087]
[1758526470651,1.57629,112910.0,112900.0,0.66978159]
[1758526471049,0.64765,112910.0,112900.0,0.55841174]
[1758526471249,1.57569,112910.0,112900.0,0.55841174]
[1758526472045,0.64765,112910.0,112900.0,0.55841174]
[1758526472351,1.57569,112910.0,112900.0,0.55841174]
[1758526472656,0.63474,112910.0,112900.0,0.67112174]
[1758526473359,0.63434,112910.0,112900.0,0.67112174]
[1758526473557,0.63474,112910.0,112900.0,0.67112174]
[1758526473759,0.63434,112910.0,112900.0,0.67112174]
[1758526473965,0.63474,112910.0,112900.0,0.67112174]
[1758526474151,0.63474,112910.0,112900.0,0.24524685]
[1758526474346,0.63474,112910.0,112900.0,0.67112174]
[1758526474955,0.27394,112910.0,112900.0,1.03192174]
[1758526475253,0.001,112910.0,112900.0,1.03192174]
[1758526475454,0.0014,112910.0,112900.0,1.03192174]
[1758526475956,0.03685,112910.0,112900.0,0.67290159]
[1758526476156,0.02394,112910.0,112900.0,1.11148648]
[1758526477959,0.02394,112910.0,112900.0,1.03192174]
[1758526478967,0.02394,112910.0,112900.0,0.60604685]
[1758526479265,0.02394,112910.0,112900.0,0.67112174]
[1758526480663,0.02394,112910.0,112900.0,0.05673865]
[1758526480959,0.02394,112910.0,112900.0,0.46990354]
[1758526480960,0.39765,112910.0,112900.0,0.46990354]
[1758526481562,0.39765,112910.0,112900.0,0.54946828]
[1758526481962,0.39765,112910.0,112900.0,0.46990354]
[1758526483261,0.39765,112910.0,112900.0,0.04402865]
[1758526483462,0.39765,112910.0,112900.0,0.46990354]
[1758526483663,0.64765,112910.0,112900.0,0.46990354]
[1758526483861,0.64765,112910.0,112900.0,0.04402865]
[1758526484062,0.64765,112910.0,112900.0,0.46990354]
[1758526485764,1.57029,112910.0,112900.0,0.04402865]
[1758526485963,1.57029,112910.0,112900.0,0.46990354]
[1758526487166,1.57029,112910.0,112900.0,0.04402865]
[1758526487460,1.57029,112910.0,112900.0,0.00104]
[1758526487867,1.57029,112910.0,112900.0,0.08060474]
[1758526488065,1.57029,112910.0,112900.0,0.00104]
[1758526488365,1.57029,112910.0,112900.0,0.08060474]
[1758526489164,1.57029,112910.0,112900.0,0.00104]
[1758526489760,1.30738,112910.0,112900.0,0.03626]
[1758526489957,0.36326,112910.0,112900.0,0.55064309]
[1758526490169,0.97049276,112920.0,112910.0,0.03522]
[1758526490369,1.39788276,112920.0,112910.0,0.46109489]
[1758526490669,1.39828276,112920.0,112910.0,0.62916003]
[1758526490968,1.39788276,112920.0,112910.0,0.20328514]
[1758526491265,1.39788276,112920.0,112910.0,0.54959529]
[1758526491466,1.39828276,112920.0,112910.0,0.54959529]
[1758526491663,0.46980276,112920.0,112910.0,0.54959529]
[1758526491866,1.39968276,112920.0,112910.0,0.54959529]
[1758526492258,1.39936276,112920.0,112910.0,0.54959529]
[1758526492463,1.40136276,112920.0,112910.0,0.54959529]
[1758526492669,1.40136276,112920.0,112910.0,0.46109489]
[1758526492959,0.47180276,112920.0,112910.0,0.46109489]
[1758526493172,1.40040276,112920.0,112910.0,0.46109489]
[1758526493466,0.47180276,112920.0,112910.0,0.46109489]
[1758526493769,1.39980276,112920.0,112910.0,0.46109489]
[1758526494170,1.39980276,112920.0,112910.0,0.03522]
[1758526494468,1.39980276,112920.0,112910.0,0.46109489]
[1758526495068,1.39980276,112920.0,112910.0,0.54959529]
[1758526495270,1.39980276,112920.0,112910.0,0.62916003]
[1758526496072,1.39980276,112920.0,112910.0,0.02251]
[1758526497368,0.03479,112910.0,112900.0,0.54058963]
[1758526497668,0.39559,112910.0,112900.0,0.54038963]
[1758526497970,0.39559,112910.0,112900.0,4e-05]
[1758526498367,0.39559,112910.0,112900.0,0.44811489]
[1758526498772,0.39559,112910.0,112900.0,0.44911489]
[1758526498975,0.39559,112910.0,112900.0,0.02324]
[1758526499869,0.39559,112910.0,112900.0,0.10280474]
[1758526500465,1.31883,112910.0,112900.0,0.02324]
[1758526501069,0.39559,112910.0,112900.0,0.02324]
[1758526501271,1.31855,112910.0,112900.0,0.08060474]
[1758526501572,0.39559,112910.0,112900.0,0.10280474]
[1758526501776,1.31799,112910.0,112900.0,0.10280474]
[1758526501975,0.39559,112910.0,112900.0,0.61718783]
[1758526502176,1.31743,112910.0,112900.0,0.63073783]
[1758526502479,1.31743,112910.0,112900.0,0.10280474]
[1758526502777,1.31743,112910.0,112900.0,0.02324]
[1758526503075,1.31743,112910.0,112900.0,0.00104]
[1758526504572,1.31743,112910.0,112900.0,0.08060474]
[1758526505171,1.56743,112910.0,112900.0,0.08060474]
[1758526505669,1.99330489,112910.0,112900.0,0.08060474]
[1758526505868,1.99330489,112910.0,112900.0,0.00104]
[1758526506665,1.07146489,112910.0,112900.0,0.00104]
[1758526506869,1.99030489,112910.0,112900.0,0.00104]
[1758526507975,0.01369,112890.0,112880.0,0.0004]
[1758526508177,1.67507,112890.0,112880.0,0.0004]
[1758526508569,0.72882,112890.0,112880.0,0.03615]
[1758526508773,0.72882,112890.0,112880.0,0.46202489]
[1758526508973,0.3819,112890.0,112880.0,0.03615]
[1758526509176,0.3819,112890.0,112880.0,0.55054879]
[1758526509370,0.3823,112890.0,112880.0,0.46202489]
[1758526509573,0.3823,112890.0,112880.0,0.03615]
[1758526509767,1.33827,112890.0,112880.0,0.46402489]
[1758526510987,1.33827,112890.0,112880.0,0.0316]
[1758526511377,1.32122,112890.0,112880.0,0.1330939]
[1758526511576,1.32122,112890.0,112880.0,0.55896879]
[1758526511880,0.37894,112890.0,112880.0,0.80896879]
[1758526512076,0.37854,112890.0,112880.0,0.92037864]
[1758526512481,1.32638,112890.0,112880.0,0.92037864]
[1758526513177,0.37894,112890.0,112880.0,0.92037864]
[1758526513476,1.30828,112890.0,112880.0,0.92037864]
[1758526513676,1.30788,112890.0,112880.0,1.02037864]
[1758526514081,1.30828,112890.0,112880.0,1.02037864]
[1758526514786,0.3612,112890.0,112880.0,1.02037864]
[1758526514986,1.30724,112890.0,112880.0,1.02037864]
[1758526515984,0.94644,112890.0,112880.0,0.90896879]
[1758526516192,0.96839,112890.0,112880.0,0.90896879]
[1758526516687,0.96839,112890.0,112880.0,1.29632296]
[1758526516994,0.96663,112890.0,112880.0,1.29632296]
[1758526517691,0.02235,112890.0,112880.0,1.29632296]
[1758526517893,0.96435,112890.0,112880.0,1.29632296]
[1758526518084,0.96435,112890.0,112880.0,1.19632296]
[1758526518394,0.02235,112890.0,112880.0,0.3830939]
[1758526518688,0.96359,112890.0,112880.0,1.19632296]
[1758526519483,0.96359,112890.0,112880.0,0.3830939]
[1758526519688,0.96359,112890.0,112880.0,1.19632296]
[1758526519988,0.96291,112890.0,112880.0,1.19632296]
[1758526520386,0.96171,112890.0,112880.0,1.19632296]
[1758526520590,0.96171,112890.0,112880.0,0.3830939]
[1758526520790,0.96171,112890.0,112880.0,1.19632296]
[1758526521088,0.96171,112890.0,112880.0,1.40773281]
[1758526521089,0.96163,112890.0,112880.0,1.40773281]
[1758526521290,0.96163,112890.0,112880.0,1.29632296]
[1758526522692,0.96131,112890.0,112880.0,1.29632296]
[1758526522888,0.96131,112890.0,112880.0,1.19632296]
[1758526523284,0.95971,112890.0,112880.0,1.19632296]
[1758526524391,0.95971,112890.0,112880.0,1.29632296]
[1758526524593,0.95971,112890.0,112880.0,1.40773281]
[1758526525986,0.95971,112890.0,112880.0,1.76853281]
[1758526526192,0.95615,112890.0,112880.0,1.76853281]
[1758526527096,0.95615,112890.0,112880.0,1.66853281]
[1758526528396,0.95615,112890.0,112880.0,1.76853281]
[1758526529795,1.5801,112890.0,112880.0,0.51785439]
[1758526529990,1.5801,112890.0,112880.0,0.43821453]
[1758526530190,1.5801,112890.0,112880.0,0.54962438]
[1758526530391,1.5801,112890.0,112880.0,0.54922438]
[1758526530595,1.5801,112890.0,112880.0,0.72135983]
[1758526531905,1.5801,112890.0,112880.0,0.64173532]
[1758526532210,1.57442,112890.0,112880.0,0.64173532]
[1758526532804,1.57442,112890.0,112880.0,0.0316]
[1758526533110,1.57402,112890.0,112880.0,0.64133532]
[1758526533510,1.57402,112890.0,112880.0,0.64533532]
[1758526534004,1.57442,112890.0,112880.0,0.64533532]
[1758526534213,1.57442,112890.0,112880.0,0.0352]
[1758526534509,1.57442,112890.0,112880.0,0.64533532]
[1758526535407,1.89744461,112890.0,112880.0,0.013]
[1758526535711,1.89744461,112890.0,112880.0,0.09302451]
[1758526535907,1.89744461,112890.0,112880.0,0.39809217]
[1758526536109,1.89744461,112890.0,112880.0,0.31846766]
[1758526536709,1.89744461,112890.0,112880.0,0.0134]
[1758526536914,1.89744461,112890.0,112880.0,0.31846766]
[1758526537506,1.89744461,112890.0,112880.0,0.0134]
[1758526538108,1.89744461,112890.0,112880.0,0.013]
[1758526538309,1.89744461,112890.0,112880.0,0.0134]
[1758526538508,1.59237695,112890.0,112880.0,0.013]
[1758526538715,1.89744461,112890.0,112880.0,0.0134]
[1758526539112,1.89304461,112890.0,112880.0,0.0134]
[1758526539313,1.64304461,112890.0,112880.0,0.0134]
[1758526540218,0.71932461,112890.0,112880.0,0.09302451]
[1758526540413,1.64216461,112890.0,112880.0,0.0134]
[1758526540616,0.71932461,112890.0,112880.0,0.0134]
[1758526540918,1.64072461,112890.0,112880.0,0.0134]
[1758526541106,1.33505695,112890.0,112880.0,0.0134]
[1758526541313,0.41425695,112890.0,112880.0,0.0134]
[1758526541512,0.71932461,112890.0,112880.0,0.0134]
[1758526541716,1.64020461,112890.0,112880.0,0.0134]
[1758526541913,0.41425695,112890.0,112880.0,0.64479532]
[1758526542117,1.33481695,112890.0,112880.0,0.64479532]
[1758526542322,1.33521695,112890.0,112880.0,0.64479532]
[1758526542821,1.33481695,112890.0,112880.0,0.33972766]
[1758526543120,1.33521695,112890.0,112880.0,0.33972766]
[1758526544814,1.64028461,112890.0,112880.0,0.33972766]
[1758526545124,1.64028461,112890.0,112880.0,0.31846766]
[1758526545621,1.64028461,112890.0,112880.0,0.0134]
[1758526545822,1.64028461,112890.0,112880.0,0.31846766]
[1758526546024,1.64056461,112890.0,112880.0,0.0134]
[1758526546418,1.64056461,112890.0,112880.0,0.31846766]
[1758526548125,1.64056461,112890.0,112880.0,0.0134]
[1758526549030,1.33549695,112890.0,112880.0,0.0134]
[1758526549319,1.64056461,112890.0,112880.0,0.0134]
[1758526550715,1.64056461,112890.0,112880.0,0.013]
[1758526550918,2.19563227,112890.0,112880.0,0.013]
[1758526551118,2.19563227,112890.0,112880.0,0.0134]
[1758526551326,1.89056461,112890.0,112880.0,0.0134]
[1758526553221,2.19563227,112890.0,112880.0,0.013]
[1758526553417,2.19563227,112890.0,112880.0,0.0134]
[1758526553624,2.64473227,112890.0,112880.0,0.0134]
[1758526554024,2.33966461,112890.0,112880.0,0.0134]
[1758526554429,2.34166461,112890.0,112880.0,0.0114]
[1758526554728,2.34466461,112890.0,112880.0,0.0044]
[1758526555726,2.64973227,112890.0,112880.0,0.0044]
[1758526558331,2.64973227,112890.0,112870.0,0.00014]
[1758526558522,1.00740532,112880.0,112870.0,0.00014]
[1758526558728,1.00740532,112880.0,112870.0,4e-05]
[1758526559428,1.00740532,112880.0,112870.0,0.00044]
[1758526562823,1.07947389,112880.0,112870.0,0.00044]
[1758526563834,0.46933857,112880.0,112870.0,0.00044]
[1758526564033,1.98863389,112880.0,112870.0,0.00044]
[1758526565727,1.37849857,112880.0,112870.0,0.00044]
[1758526566028,1.98863389,112880.0,112870.0,0.00044]
[1758526566437,1.37849857,112880.0,112870.0,0.00044]
[1758526566736,1.98863389,112880.0,112870.0,0.00044]
[1758526570335,1.98863389,112880.0,112870.0,4e-05]
[1758526570336,2.54370155,112880.0,112870.0,4e-05]
[1758526570535,2.54370155,112880.0,112870.0,0.00044]
[1758526570735,2.54370155,112880.0,112870.0,4e-05]
[1758526570935,0.03647,112870.0,112860.0,0.0001]
[1758526571140,0.03647,112870.0,112850.0,0.00094]
[1758526571141,0.03647,112860.0,112850.0,0.00094]
[1758526571339,1.91348532,112860.0,112850.0,4e-05]
[1758526571640,1.91348532,112860.0,112850.0,0.00044]
[1758526571840,1.91348532,112860.0,112850.0,4e-05]
[1758526572044,1.91348532,112860.0,112850.0,0.00044]
[1758526573343,1.00740532,112860.0,112850.0,0.00044]
[1758526573651,1.91476532,112860.0,112850.0,0.00044]
[1758526573942,1.30463,112860.0,112850.0,0.00044]
[1758526574143,1.91776532,112860.0,112850.0,0.00044]
[1758526575037,1.30763,112860.0,112850.0,0.00044]
[1758526575237,1.91776532,112860.0,112850.0,0.00044]
[1758526576436,1.92717616,112860.0,112850.0,0.00044]
[1758526577338,1.92717616,112860.0,112850.0,4e-05]
[1758526577538,1.92717616,112860.0,112850.0,0.00044]
[1758526578344,0.7167485,112860.0,112850.0,0.00044]
[1758526578545,1.6189885,112860.0,112850.0,0.00044]
[1758526578740,1.92405616,112860.0,112850.0,0.00044]
[1758526579738,1.92505616,112860.0,112850.0,0.00044]
[1758526579938,1.02181616,112860.0,112850.0,0.00044]
[1758526580339,1.31444084,112860.0,112850.0,0.00044]
[1758526580944,1.92457616,112860.0,112850.0,0.00044]
[1758526582148,1.02181616,112860.0,112850.0,0.00044]
[1758526582340,1.92317616,112860.0,112850.0,0.00044]
[1758526584145,2.22824382,112860.0,112850.0,0.00044]
[1758526584341,2.47824382,112860.0,112850.0,0.00044]
[1758526584741,0.03663,112850.0,112840.0,0.0001]
[1758526584947,0.03662,112840.0,112830.0,0.0009]
[1758526585152,0.03662,112830.0,112820.0,0.40562381]
[1758526585350,0.70248766,112830.0,112820.0,0.07966451]
[1758526585653,0.70248766,112830.0,112820.0,0.10255451]
[1758526585846,0.77246965,112830.0,112820.0,0.02213]
[1758526586043,0.46740199,112830.0,112820.0,0.02213]
[1758526586251,0.77246965,112830.0,112820.0,0.02253]
[1758526586752,0.77246965,112830.0,112820.0,0.02353]
[1758526587251,0.46740199,112830.0,112820.0,0.02813]
[1758526587551,0.77246965,112830.0,112820.0,0.02853]
[1758526588051,1.67206965,112830.0,112820.0,0.02853]
[1758526588247,0.77246965,112830.0,112820.0,0.02853]
[1758526588549,1.67158965,112830.0,112820.0,0.02853]
[1758526589050,1.36652199,112830.0,112820.0,0.02853]
[1758526589247,1.67158965,112830.0,112820.0,0.02853]
[1758526589843,1.36652199,112830.0,112820.0,0.02853]
[1758526590046,1.67158965,112830.0,112820.0,0.02853]
[1758526590449,0.77246965,112830.0,112820.0,0.02853]
[1758526590746,1.77253604,112830.0,112820.0,0.02853]
[1758526590951,1.77229604,112830.0,112820.0,0.02853]
[1758526591147,0.87465604,112830.0,112820.0,0.02853]
[1758526591449,1.77229604,112830.0,112820.0,0.02853]
[1758526593254,1.36504199,112830.0,112820.0,0.02853]
[1758526593453,1.77229604,112830.0,112820.0,0.02853]
[1758526593654,1.77229604,112830.0,112820.0,0.00644]
[1758526594248,1.77229604,112830.0,112820.0,0.00604]
[1758526594450,1.77229604,112830.0,112820.0,0.00644]
[1758526595354,0.87465604,112830.0,112820.0,0.00644]
[1758526595559,1.77041604,112830.0,112820.0,0.00644]
[1758526598754,1.77041604,112830.0,112820.0,0.00604]
[1758526598958,1.77041604,112830.0,112820.0,0.00644]
[1758526600848,1.77041604,112830.0,112820.0,0.00604]
[1758526601047,1.77041604,112830.0,112820.0,0.00644]
[1758526603958,1.76677604,112830.0,112820.0,0.00644]
[1758526606458,0.87465604,112830.0,112820.0,0.00644]
[1758526606761,1.76521604,112830.0,112820.0,0.00644]
[1758526607861,0.46740199,112830.0,112820.0,0.00644]
[1758526608057,1.76457604,112830.0,112820.0,0.00644]
[1758526610154,2.01457604,112830.0,112820.0,0.00644]
[1758526610357,2.01457604,112830.0,112820.0,0.00604]
[1758526610558,2.01457604,112830.0,112820.0,0.00644]
[1758526610754,1.12465604,112830.0,112820.0,0.00604]
[1758526610966,1.12465604,112830.0,112820.0,0.00644]
[1758526611464,2.01357604,112830.0,112820.0,0.00644]
[1758526611665,1.60632199,112830.0,112820.0,0.00644]
[1758526611866,2.01357604,112830.0,112820.0,0.00044]
[1758526612165,2.01357604,112830.0,112820.0,0.00244]
[1758526613567,1.12465604,112830.0,112820.0,0.00244]
[1758526613767,2.01253604,112830.0,112820.0,0.00244]
[1758526614271,2.01237604,112830.0,112820.0,0.00244]
[1758526618672,1.60512199,112830.0,112820.0,0.00244]
[1758526618875,2.01237604,112830.0,112820.0,0.00244]
[1758526619066,2.01181604,112830.0,112820.0,0.00244]
[1758526620165,1.12465604,112830.0,112820.0,0.00244]
[1758526620365,2.01181604,112830.0,112820.0,0.00244]
[1758526620562,1.12465604,112830.0,112820.0,0.00244]
[1758526620770,2.01181604,112830.0,112820.0,0.00244]
[1758526621673,1.12465604,112830.0,112820.0,0.00244]
[1758526621875,2.01181604,112830.0,112820.0,0.00244]
[1758526623167,3.87873604,112830.0,112820.0,0.00244]
[1758526623976,3.88473604,112830.0,112820.0,0.00244]
[1758526624176,3.89673604,112830.0,112820.0,0.00044]
[1758526625677,0.03412,112820.0,112810.0,0.0001]
[1758526625878,0.80217405,112820.0,112800.0,0.00014]
[1758526626078,1.68929405,112810.0,112800.0,0.00014]
[1758526626278,0.0001,112820.0,112810.0,0.3737789]
[1758526626480,0.018,112830.0,112820.0,0.123771]
[1758526626677,0.018,112830.0,112820.0,1.14182505]
[1758526627077,0.012,112830.0,112820.0,1.14182505]
[1758526627271,0.38215,112850.0,112840.0,0.1237553]
[1758526627472,0.91887,112850.0,112840.0,0.53100935]
[1758526627673,0.02135,112850.0,112840.0,0.53100935]
[1758526627873,0.91895,112850.0,112840.0,0.53100935]
[1758526628183,0.98273208,112850.0,112840.0,0.53100935]
[1758526628481,0.98773208,112850.0,112840.0,0.53100935]
[1758526628977,0.09588759,112850.0,112840.0,0.53100935]
[1758526629182,0.9022,112850.0,112840.0,0.88100935]
[1758526630282,0.004,112850.0,112840.0,0.88100935]
[1758526630473,0.90116,112850.0,112840.0,0.88100935]
[1758526630680,0.004,112850.0,112840.0,0.88100935]
[1758526630877,0.004,112850.0,112840.0,1.6490634]
[1758526631083,0.004,112850.0,112840.0,1.7490634]
[1758526631780,0.01829298,112860.0,112850.0,0.0885475]
[1758526632084,0.89756,112870.0,112860.0,0.14579213]
[1758526632283,0.89716,112870.0,112860.0,0.55304618]
[1758526632789,0.02132,112880.0,112870.0,0.1248818]
[1758526632988,2.26713695,112890.0,112880.0,0.124874]
[1758526633282,2.76468,112890.0,112880.0,0.53212805]
[1758526633488,3.1468,112890.0,112880.0,0.78212805]
[1758526633688,3.83434755,112890.0,112870.0,0.1024589]
[1758526633988,0.38222,112880.0,112870.0,0.1252789]
[1758526634176,0.39152548,112880.0,112870.0,0.1252789]
[1758526634377,0.39142548,112880.0,112870.0,0.1252789]
[1758526634775,0.463834,112880.0,112870.0,0.03675]
[1758526634979,0.463834,112880.0,112870.0,0.1252818]
[1758526635786,0.468934,112880.0,112870.0,0.53253585]
[1758526635986,0.468934,112880.0,112870.0,0.1252818]
[1758526636175,0.468934,112880.0,112870.0,0.53253585]
[1758526636380,0.479934,112880.0,112870.0,0.53253585]
[1758526636582,0.479834,112880.0,112870.0,0.53253585]
[1758526637484,0.39812,112880.0,112870.0,0.53253585]
[1758526637689,0.39812,112880.0,112870.0,1.6505899]
[1758526637690,0.016,112880.0,112870.0,1.6505899]
[1758526638188,0.016,112880.0,112870.0,1.24333585]
[1758526638390,0.0164,112880.0,112870.0,1.6505899]
[1758526638589,0.016,112880.0,112870.0,1.6505899]
[1758526638790,0.0164,112880.0,112870.0,1.6505899]
[1758526639092,0.0164,112880.0,112870.0,1.6597716]
[1758526640887,0.0164,112880.0,112870.0,1.6505899]
[1758526644293,0.01088,112880.0,112870.0,1.6505899]
[1758526644488,0.0001,112890.0,112880.0,0.123264]
[1758526644680,0.0008,112900.0,112890.0,0.53051015]
[1758526644879,0.89197001,112920.0,112910.0,0.1011904]
[1758526645094,0.9155253,112920.0,112910.0,0.53049445]
[1758526645395,0.4248653,112920.0,112910.0,0.53049445]
[1758526645888,1.3277453,112920.0,112910.0,0.53049445]
[1758526646299,1.3277453,112920.0,112910.0,0.53149445]
[1758526646797,1.3287453,112920.0,112910.0,0.53149445]
[1758526647189,1.3287453,112920.0,112910.0,0.03574]
[1758526647495,1.5912953,112920.0,112910.0,0.02305]
[1758526648497,1.5912953,112920.0,112910.0,0.03574]
[1758526649796,1.5787053,112920.0,112910.0,0.03574]
[1758526650298,1.99854935,112920.0,112890.0,0.01289]
[1758526650495,0.75068,112900.0,112890.0,0.03484]
[1758526650700,1.65296,112900.0,112890.0,0.03474]
[1758526650995,1.66893596,112900.0,112890.0,0.44199405]
[1758526652002,2.33257001,112900.0,112880.0,0.03367392]
[1758526652190,0.80363405,112890.0,112880.0,0.02215]
[1758526652498,0.80363405,112890.0,112880.0,0.02205]
[1758526652698,0.70047375,112890.0,112880.0,0.32714375]
[1758526652897,0.39538,112890.0,112880.0,0.33983375]
[1758526653200,1.59679375,112890.0,112880.0,0.33983375]
[1758526653384,1.59979375,112890.0,112880.0,0.33983375]
[1758526653588,1.60279375,112890.0,112880.0,0.33983375]
[1758526653893,1.36970553,112890.0,112880.0,0.33983375]
[1758526654099,1.67479928,112890.0,112880.0,0.33983375]
[1758526654493,1.69718334,112890.0,112880.0,0.33983375]
[1758526655394,1.39208959,112890.0,112880.0,0.33983375]
[1758526655599,1.37930959,112890.0,112880.0,0.6449275]
[1758526661405,1.37930959,112890.0,112880.0,0.7334515]
[1758526661611,0.47598959,112890.0,112880.0,0.7334515]
[1758526661807,0.47598959,112890.0,112880.0,1.28854525]
[1758526661808,0.38118406,112890.0,112880.0,1.28854525]
[1758526662103,0.0227,112900.0,112890.0,0.1232561]
[1758526662302,0.0227,112900.0,112890.0,0.7334436]
[1758526662303,0.3616,112900.0,112890.0,0.7334436]
[1758526662509,0.90544,112900.0,112890.0,0.7334436]
[1758526662709,0.0008,112900.0,112890.0,0.9834436]
[1758526663309,0.0277,112900.0,112890.0,0.9834436]
[1758526663511,0.0281,112900.0,112890.0,0.9834436]
[1758526663810,0.0381,112900.0,112890.0,0.9834436]
[1758526665908,0.0381,112900.0,112890.0,0.67834985]
[1758526670907,0.0382,112900.0,112890.0,0.1232561]
[1758526671108,0.05095,112900.0,112890.0,0.42834985]
[1758526671309,0.0382,112900.0,112890.0,0.42834985]
[1758526671612,0.399,112900.0,112890.0,0.1232561]